bitfinex/quotes_ETHUSD_20250404
["timestamp","ask_amount","ask_price","bid_price","bid_amount"]
[1743771897595,0.8176,1796.2,1796.1,5.61761]
[1743771897998,0.8176,1796.2,1796.1,0.05]
[1743771898500,6.06,1796.6,1796.2,5.56704]
[1743771898501,0.7863,1796.5,1796.2,5.56704]
[1743771898804,0.7863,1796.5,1796.2,5.62294727]
[1743771899038,6.35279,1796.5,1796.1,0.05]
[1743771899309,11.13373,1796.4,1796.1,0.05]
[1743771899469,5.56712,1796.3,1796.1,0.05]
[1743771899666,1.113387,1796.3,1796.1,0.05]
[1743771899913,5.56673,1796.4,1796.1,0.05]
[1743771900117,6.3527,1796.5,1796.1,0.05]
[1743771900414,0.7863,1796.5,1796.1,0.10567451]
[1743771900613,0.7741,1796.8,1796.1,0.05]
[1743771900914,0.7741,1796.8,1796.6,5.56592]
[1743771901111,0.7741,1797.2,1796.8,5.5652]
[1743771901267,0.7741,1797.2,1796.7,5.62136342]
[1743771901466,6.3385,1797.2,1796.7,5.5656]
[1743771901686,6.3385,1797.2,1796.8,5.56537]
[1743771901887,5.56529,1796.9,1796.4,6.07207719]
[1743771902083,0.8054,1796.8,1796.4,6.07207719]
[1743771902373,0.8054,1796.8,1796.6,5.56595]
[1743771902587,0.8054,1796.8,1796.5,5.56624]
[1743771902784,0.8054,1796.8,1796.4,5.56662]
[1743771903111,0.8054,1796.8,1796.4,5.56666]
[1743771903286,6.37105,1796.8,1796.3,5.56693]
[1743771903482,6.37105,1796.8,1796.2,0.50548719]
[1743771903483,0.7597,1796.7,1796.2,0.50548719]
[1743771903783,0.7597,1796.3,1796.2,0.50548719]
[1743771904112,5.56533,1796.9,1796.4,5.56657]
[1743771904286,5.56559,1796.8,1796.4,0.556657]
[1743771904487,5.56559,1796.8,1796.4,0.05566062]
[1743771904674,12.39336,1797.0,1796.5,5.56626]
[1743771904875,5.56543,1796.9,1796.3,5.5669]
[1743771905100,0.8119,1796.6,1796.2,6.07415192]
[1743771905296,6.37812,1796.6,1796.2,0.50697192]
[1743771905701,0.8119,1796.6,1796.4,5.56655]
[1743771905881,0.773,1796.9,1796.5,5.56637]
[1743771906206,0.773,1796.7,1796.3,0.50697192]
[1743771906507,5.56655,1796.5,1796.3,0.50697192]
[1743771906911,5.56655,1796.5,1796.1,5.67326873]
[1743771907077,0.773,1796.7,1796.1,1.22480107]
[1743771907395,5.56665,1796.5,1796.1,0.05]
[1743771907778,5.56661,1796.5,1796.1,0.05]
[1743771908012,5.56661,1796.5,1796.1,5.61759]
[1743771908314,6.35682,1796.6,1796.1,5.61757]
[1743771908471,5.56654,1796.5,1796.1,0.05]
[1743771908672,11.92298,1796.6,1796.1,5.61749]
[1743771908875,5.56644,1796.5,1796.1,0.05]
[1743771909115,7.549068,1796.6,1796.1,5.61752]
[1743771909311,0.7906,1796.6,1796.3,5.56689]
[1743771909522,0.7906,1796.6,1796.1,6.12458192]
[1743771909679,0.829,1796.8,1796.5,11.13274]
[1743771910010,0.829,1796.8,1796.5,5.56621]
[1743771911001,0.829,1796.8,1796.4,5.56651]
[1743771911204,6.39457,1796.8,1796.4,5.56651]
[1743771911388,7.590562,1796.8,1796.4,0.50697192]
[1743771911592,13.156242,1796.8,1796.4,0.50697192]
[1743771911792,6.8882,1797.2,1796.9,5.56504]
[1743771912115,0.8282,1797.2,1796.5,5.56637]
[1743771912316,0.8282,1797.2,1797.0,5.56461]
[1743771912478,0.8282,1797.2,1796.8,5.56524]
[1743771912479,0.8282,1797.2,1796.9,5.56501]
[1743771912681,0.8282,1797.2,1796.9,11.13005]
[1743771912909,0.8282,1797.2,1797.0,5.56473]
[1743771913111,0.8282,1797.2,1796.9,5.56512]
[1743771913313,0.8282,1797.2,1796.8,5.56536]
[1743771913482,0.8282,1797.2,1796.8,6.07226192]
[1743771913794,7.031743,1797.2,1796.8,5.56529]
[1743771913988,0.8282,1797.2,1797.0,5.56481]
[1743771914218,0.8282,1797.2,1797.1,5.56452]
[1743771914406,0.8282,1797.2,1797.0,5.56471]
[1743771914606,0.8282,1797.2,1796.9,5.56503]
[1743771914916,0.8291,1797.4,1797.1,5.56452]
[1743771915120,0.8291,1797.4,1797.1,11.1289]
[1743771915319,0.8291,1797.4,1797.1,5.56435]
[1743771915814,0.8291,1797.4,1797.1,11.12873]
[1743771915982,6.06,1797.5,1797.3,5.5639]
[1743771916180,0.8131,1797.6,1797.4,5.56347]
[1743771916508,0.8131,1797.6,1797.3,5.56383]
[1743771916811,0.8131,1797.6,1797.3,5.56379]
[1743771917017,6.828,1797.9,1797.4,0.05563404]
[1743771917203,0.768,1797.9,1797.7,5.56263]
[1743771917635,0.005,1797.9,1797.5,0.50537796]
[1743771917839,0.005,1797.9,1797.7,5.56244]
[1743771918023,0.005,1797.9,1797.7,6.118684]
[1743771918217,0.005,1797.9,1797.7,5.56244]
[1743771918522,5.5626,1797.8,1797.2,5.56421]
[1743771918721,5.5626,1797.8,1797.3,5.61926205]
[1743771919031,0.7781,1797.4,1796.9,5.5651]
[1743771919214,6.34187,1797.4,1797.0,5.56479]
[1743771919387,6.34187,1797.4,1796.9,5.5651]
[1743771919592,6.975967,1797.4,1796.9,5.56486]
[1743771919991,1.412287,1797.4,1797.0,5.56465]
[1743771920229,0.7781,1797.4,1797.0,5.56465]
[1743771920440,0.7781,1797.4,1796.6,9.21601561]
[1743771920642,6.34181,1797.4,1796.9,5.56504]
[1743771920829,5.56404,1797.3,1796.9,5.56512]
[1743771921028,11.90562,1797.4,1796.9,5.56498]
[1743771921237,6.34181,1797.4,1796.9,11.12994]
[1743771921451,0.7807,1797.3,1796.9,5.56497]
[1743771921627,5.56474,1797.1,1796.7,0.50489797]
[1743771921828,5.56497,1797.0,1796.7,0.50489797]
[1743771922137,0.7561,1796.9,1796.5,5.56632]
[1743771922342,5.56563,1796.8,1796.5,1.113299]
[1743771922508,11.13133,1796.8,1796.3,5.56697]
[1743771922923,5.5658,1796.7,1796.2,5.56726]
[1743771923327,11.13183,1796.7,1796.2,5.56726]
[1743771923510,11.13117,1796.8,1796.3,5.56679]
[1743771923713,6.32128,1796.9,1796.4,5.56668]
[1743771923908,5.5656,1796.8,1796.3,5.56682]
[1743771924151,11.13192,1796.7,1796.2,6.685604]
[1743771924449,6.37554,1796.6,1796.1,0.55525173]
[1743771924625,5.56681,1796.4,1796.1,0.05]
[1743771924822,0.8271,1796.2,1796.1,0.05]
[1743771927050,0.7711,1796.4,1796.1,5.61761]
[1743771927214,0.7711,1796.4,1796.1,6.736158]
[1743771927411,0.7711,1796.4,1796.1,1.168548]
[1743771927617,0.7711,1796.4,1796.1,12.303488]
[1743771927859,0.7711,1796.4,1796.2,5.56727]
[1743771928347,5.56721,1796.3,1796.1,0.05]
[1743771928550,6.33788,1796.4,1796.1,0.05]
[1743771928723,11.13429,1796.3,1796.1,0.05]
[1743771928927,5.5673,1796.2,1796.1,0.05]
[1743771929326,2.010888,1796.4,1796.1,0.05]
[1743771929523,0.7711,1796.4,1796.1,5.61747]
[1743771929728,0.7711,1796.4,1796.1,0.05]
[1743771929924,6.33805,1796.4,1796.1,0.05]
[1743771930314,0.7711,1796.4,1796.1,0.05]
[1743771930748,6.33779,1796.4,1796.1,0.05]
[1743771931054,0.7711,1796.4,1796.1,6.179258]
[1743771931222,0.35521377,1796.3,1796.2,5.56723]
[1743771931548,6.06,1796.5,1796.1,0.611778]
[1743771931716,0.35229333,1796.3,1796.1,0.05]
[1743771931916,0.7598,1796.3,1796.1,0.05]
[1743771932251,0.35058631,1796.2,1796.1,5.61755]
[1743771933784,6.8348,1796.5,1796.2,5.56723]
[1743771934084,0.35118986,1796.4,1796.2,5.56705]
[1743771934279,0.35118986,1796.4,1796.1,5.61758]
[1743771934481,0.35118986,1796.4,1796.1,5.61748]
[1743771934649,0.35118986,1796.4,1796.2,5.56713]
[1743771934991,0.35118986,1796.4,1796.3,5.56699]
[1743771935489,0.35118986,1796.4,1796.3,6.680402]
[1743771935844,0.7524,1796.8,1796.6,5.5659]
[1743771936081,12.38759,1797.1,1796.9,5.56502]
[1743771936082,0.8013,1797.1,1796.9,5.56502]
[1743771936389,6.06,1797.5,1797.4,5.56359]
[1743771936612,0.8024,1797.7,1797.4,5.56359]
[1743771936613,0.8024,1797.7,1797.4,5.56348]
[1743771936742,0.8024,1797.7,1797.3,5.56387]
[1743771936943,5.56725,1797.9,1797.0,12.38671]
[1743771936944,0.7735,1797.6,1797.0,12.38671]
[1743771937295,5.56418,1797.3,1796.8,5.56531]
[1743771937456,6.120648,1797.2,1796.7,5.56563]
[1743771937645,5.56423,1797.2,1796.6,5.56602]
[1743771937868,5.56516,1796.9,1796.4,5.56661]
[1743771938157,0.32482722,1796.8,1796.5,0.05565809]
[1743771938356,0.32482722,1796.8,1796.6,5.56603]
[1743771938587,0.32441231,1796.7,1796.5,5.56626]
[1743771938794,0.32441231,1796.7,1796.5,6.679552]
[1743771938965,0.32441231,1796.7,1796.3,1.113412]
[1743771939146,0.8332,1796.7,1796.3,5.56689]
[1743771939346,0.32399735,1796.6,1796.4,5.56662]
[1743771939857,5.89006735,1796.6,1796.1,6.12106329]
[1743771940057,5.56682,1796.4,1796.1,0.55346329]
[1743771940575,0.32259084,1796.3,1796.1,0.05]
[1743771940876,6.33989,1796.5,1796.1,0.05]
[1743771941063,0.32181751,1796.2,1796.1,0.05]
[1743771941260,6.33989,1796.5,1796.1,0.05]
[1743771941460,0.29457805,1796.2,1796.1,5.61761]
[1743771941866,0.7735,1796.5,1796.1,5.61761]
[1743771942071,0.29500798,1796.2,1796.1,5.61761]
[1743771942247,0.7735,1796.5,1796.1,5.61761]
[1743771942450,0.26998148,1796.4,1796.3,5.56699]
[1743771942668,0.7798,1796.8,1796.6,5.56579]
[1743771942870,0.7798,1796.8,1796.5,5.56625]
[1743771943186,0.7798,1796.8,1796.6,5.566]
[1743771943388,6.8359,1797.1,1796.7,5.56575]
[1743771943601,6.8359,1797.1,1796.9,5.56513]
[1743771943602,0.7759,1797.1,1796.9,5.56513]
[1743771943764,6.06,1797.3,1796.9,5.56503]
[1743771943973,0.8298,1797.0,1796.7,5.56561]
[1743771944292,0.8298,1797.0,1796.6,5.56595]
[1743771944458,12.45479,1797.0,1796.5,5.5662]
[1743771944652,5.56524,1796.9,1796.3,5.56697]
[1743771944897,11.62524,1796.9,1796.3,5.56688]
[1743771945193,0.7625,1796.7,1796.2,0.05566514]
[1743771945493,0.7625,1796.7,1796.4,5.56652]
[1743771946392,0.7625,1796.7,1796.4,5.5665]
[1743771946609,5.56607,1796.6,1796.1,5.61758]
[1743771946894,5.5664,1796.5,1796.1,0.05]
[1743771947081,6.06,1796.6,1796.2,5.5672]
[1743771947276,11.62618,1796.6,1796.1,5.61761]
[1743771947477,11.62618,1796.6,1796.1,5.61747]
[1743771947669,6.728988,1796.5,1796.1,0.05]
[1743771947871,0.8178,1796.4,1796.1,5.61761]
[1743771948081,6.8778,1796.6,1796.3,5.56699]
[1743771948262,6.8778,1796.6,1796.4,5.56641]
[1743771948458,6.8778,1796.6,1796.2,5.62277668]
[1743771948679,6.8778,1796.6,1796.1,5.61756]
[1743771948993,7.56558,1796.6,1796.2,5.56718]
[1743771949300,6.8778,1796.6,1796.2,0.05567132]
[1743771949478,6.8778,1796.6,1796.4,5.56653]
[1743771950597,6.8778,1796.6,1796.4,5.56652]
[1743771950803,0.7782,1796.8,1796.6,5.56602]
[1743771951205,5.56617,1796.6,1796.2,5.56718]
[1743771951504,0.7782,1796.4,1796.2,0.50430759]
[1743771951896,0.7782,1796.4,1796.1,0.05]
[1743771952094,0.7782,1796.4,1796.1,5.61732]
[1743771952625,0.7782,1796.4,1796.1,0.05]
[1743771952950,5.56704,1796.3,1796.1,0.05]
[1743771953091,6.3449,1796.4,1796.1,0.05]
[1743771953092,0.7782,1796.4,1796.1,0.05]
[1743771953431,0.23431525,1796.2,1796.1,0.05]
[1743771953584,0.23476324,1796.2,1796.1,0.05]
[1743771953786,6.34499,1796.4,1796.1,0.05]
[1743771953990,1.969342,1796.4,1796.1,0.05]
[1743771954191,0.23473043,1796.3,1796.1,0.05]
[1743771954696,0.23431525,1796.2,1796.1,0.05]
[1743771955127,6.3449,1796.4,1796.1,0.05]
[1743771955321,5.80179439,1796.2,1796.1,0.05]
[1743771955635,7.17428425,1796.2,1796.1,0.05]
[1743771957433,13.23428425,1796.2,1795.5,0.50430759]
[1743771957633,0.8201,1795.6,1795.2,6.07460759]
[1743771958133,0.22992992,1795.5,1795.2,0.50430759]
[1743771958320,0.22992992,1795.5,1795.1,0.05]
[1743771958517,5.5699,1795.4,1795.1,0.05]
[1743771958716,6.75588299,1795.4,1795.1,0.05]
[1743771958935,5.79504994,1795.3,1795.1,0.05]
[1743771959142,6.3905,1795.2,1795.1,0.05]
[1743771959531,12.62287924,1795.2,1795.1,0.05]
[1743771959741,15.62287924,1795.2,1795.1,0.05]
[1743771960047,18.42387916,1795.2,1795.1,0.05]
[1743771961045,5.57218,1794.7,1794.3,0.56003139]
[1743771961232,6.62204153,1794.6,1794.2,0.50430759]
[1743771961631,11.63269,1794.5,1794.1,0.05]
[1743771961951,5.57351,1794.2,1794.1,0.05]
[1743771962154,12.46251,1794.2,1794.1,0.05]
[1743771962308,12.67597333,1794.2,1794.1,0.05]
[1743771962511,19.49297333,1794.2,1794.1,0.05]
[1743771962711,14.28391002,1794.2,1794.1,0.05]
[1743771963014,12.67597333,1794.2,1794.1,0.05]
[1743771963235,7.10246333,1794.2,1794.1,0.05]
[1743771963445,0.21346333,1794.2,1794.1,0.05]
[1743771963819,5.78697333,1794.2,1794.1,0.05]
[1743771964332,6.60077333,1794.2,1794.1,0.05]
[1743771964537,7.81818966,1794.2,1794.1,0.05]
[1743771965535,0.7537,1793.8,1793.2,5.57646]
[1743771965845,0.1898717,1793.7,1793.1,5.62682]
[1743771966044,0.1898717,1793.7,1793.3,5.5761]
[1743771966408,11.8249517,1793.7,1793.1,5.62689]
[1743771966612,11.8249517,1793.7,1793.3,5.57622]
[1743771966613,1.18249517,1793.6,1793.3,5.57622]
[1743771966813,0.18867269,1793.5,1793.4,5.5758]
[1743771967048,6.06,1793.7,1793.4,5.57598]
[1743771967249,6.06,1793.7,1793.2,5.57654]
[1743771967567,0.18860128,1793.6,1793.5,5.57568]
[1743771967853,6.818,1794.0,1793.5,5.63142738]
[1743771968068,0.1728868,1793.9,1793.2,3.92138855]
[1743771968272,0.1728868,1793.9,1793.6,5.57524]
[1743771968448,5.7473468,1793.9,1793.5,5.5756]
[1743771968648,0.1728868,1793.9,1793.3,5.57631]
[1743771968834,0.1728868,1793.9,1793.7,5.57503]
[1743771969032,0.7872,1794.2,1793.7,6.132533]
[1743771969237,12.29481415,1794.5,1793.9,5.57419]
[1743771969238,0.17711481,1794.1,1793.9,5.57419]
[1743771969674,6.3797,1794.4,1794.0,5.57413]
[1743771969872,0.8068,1794.4,1794.1,5.57377]
[1743771970082,7.5852,1794.7,1794.1,0.05573864]
[1743771970375,12.3909,1794.6,1794.1,5.57363]
[1743771970574,12.3909,1794.6,1793.9,5.57431]
[1743771970575,5.57299,1794.4,1793.9,5.57431]
[1743771970777,5.57398,1794.1,1793.5,5.57567]
[1743771971071,0.7662,1794.0,1793.5,5.57561]
[1743771971274,0.7662,1794.0,1793.4,5.57596]
[1743771971275,11.14927,1793.9,1793.4,5.57596]
[1743771971476,1.114927,1793.8,1793.4,5.57596]
[1743771971779,12.40045,1794.0,1793.5,5.57557]
[1743771971973,6.8262,1794.0,1793.6,5.57526]
[1743771972839,12.40035,1794.0,1793.6,5.57526]
[1743771973047,6.8262,1794.0,1793.6,5.57524]
[1743771973242,6.8262,1794.0,1793.6,5.57522]
[1743771973479,13.640481,1794.0,1793.6,5.57522]
[1743771973639,5.5746,1793.9,1793.3,5.57617]
[1743771973838,5.57487,1793.8,1793.3,5.57617]
[1743771974042,5.57506,1793.7,1793.1,5.62689]
[1743771974297,6.32573,1793.6,1793.1,5.6268]
[1743771974585,0.632573,1793.5,1793.3,5.57621]
[1743771974785,6.32557,1793.6,1793.1,5.62691]
[1743771974955,5.5758,1793.5,1793.1,0.05]
[1743771975153,5.57601,1793.4,1793.1,0.05]
[1743771975346,6.06,1793.5,1793.1,5.62687]
[1743771975556,6.06,1793.5,1793.2,5.57647]
[1743771975758,6.06,1793.5,1793.2,11.15298]
[1743771975958,6.06,1793.5,1793.2,6.696718]
[1743771976197,6.06,1793.5,1793.2,5.57642]
[1743771976399,6.06,1793.5,1793.3,5.57618]
[1743771976687,6.06,1793.5,1793.1,5.62681]
[1743771976846,5.57654,1793.3,1793.1,0.05]
[1743771977051,5.57662,1793.2,1793.1,0.05]
[1743771977275,6.37562,1793.2,1793.1,0.05]
[1743771977488,12.8624282,1793.2,1793.1,0.05]
[1743771977803,0.8245,1792.7,1792.4,5.57895]
[1743771977953,0.8245,1792.7,1792.5,5.57865]
[1743771978174,0.8245,1792.7,1792.4,5.57908]
[1743771978517,18.68131,1792.7,1792.2,5.5796]
[1743771978687,13.10293,1792.7,1792.2,5.5796]
[1743771979089,13.10313,1792.7,1792.2,5.5796]
[1743771979293,5.57873,1792.6,1792.1,5.62999]
[1743771979497,7.52474,1792.7,1792.3,5.57928]
[1743771979805,0.752474,1792.6,1792.1,0.05]
[1743771980011,6.06,1792.5,1792.1,0.05]
[1743771980178,6.37865,1792.3,1792.1,0.05]
[1743771980381,6.06,1792.2,1792.1,0.05]
[1743771980922,11.63973,1792.2,1792.1,0.05]
[1743771981116,8.54383,1792.2,1792.1,0.05]
[1743771981327,6.06,1792.2,1792.1,0.05]
[1743771982209,0.799,1792.3,1792.1,5.63004]
[1743771982426,13.6863,1792.5,1792.1,0.05]
[1743771982580,19.2653,1792.5,1792.1,0.05]
[1743771982921,13.6863,1792.5,1792.1,11.20977]
[1743771983112,0.14791802,1792.4,1792.3,5.57912]
[1743771983280,0.14791802,1792.4,1792.1,6.750927]
[1743771983481,0.14791802,1792.4,1792.1,0.05]
[1743771984126,0.14791802,1792.4,1792.3,5.57942]
[1743771984285,0.14791802,1792.4,1792.1,5.63001]
[1743771984701,0.14791802,1792.4,1792.1,5.62984]
[1743771984897,0.14791802,1792.4,1792.1,0.05]
[1743771985188,5.57973,1792.2,1792.1,0.05]
[1743771985498,11.78630462,1792.2,1792.1,0.05]
[1743771985908,6.20657462,1792.2,1792.1,0.05]
[1743771986287,0.14657462,1792.2,1792.1,0.05]
[1743771987307,6.20657462,1792.2,1792.1,0.05]
[1743771987511,6.90886208,1792.2,1792.1,0.05]
[1743771988023,0.14657462,1792.2,1792.1,0.05]
[1743771988325,6.8827,1792.2,1792.1,0.05]
[1743771988497,7.02998398,1792.2,1792.1,0.05]
[1743771989330,12.60971398,1792.2,1792.1,0.05]
[1743771989486,0.8258,1792.1,1791.3,0.5045291]
[1743771989680,0.14339032,1792.0,1791.3,1.11884526]
[1743771989884,0.14339032,1792.0,1791.6,5.58157]
[1743771990616,0.14339032,1792.0,1791.6,11.16307]
[1743771990801,0.14339032,1792.0,1791.6,5.5815]
[1743771991001,0.14339032,1792.0,1791.6,5.58138]
[1743771991205,0.84630935,1792.0,1791.5,5.58179]
[1743771991527,0.84630935,1792.0,1791.5,5.58178]
[1743771991826,0.84630935,1792.0,1791.5,5.5819]
[1743771992012,0.84630935,1792.0,1791.4,5.58208]
[1743771992419,0.7736,1791.8,1791.3,5.5825]
[1743771992583,7.51696,1791.8,1791.2,6.0873591]
[1743771992789,0.14121086,1791.7,1791.2,6.0873591]
[1743771993013,0.14121086,1791.7,1791.2,5.58283]
[1743771993201,6.20121086,1791.7,1791.2,5.58283]
[1743771993737,6.20121086,1791.7,1791.2,5.58275]
[1743771993927,0.62012109,1791.6,1791.2,5.58275]
[1743771994227,6.82145417,1791.6,1791.1,11.16604]
[1743771994430,6.82145417,1791.6,1791.0,6.0878891]
[1743771994627,0.7761,1791.5,1791.1,5.58305]
[1743771994829,0.7761,1791.5,1791.1,5.583]
[1743771994984,0.14076789,1791.4,1790.9,6.0881891]
[1743771995327,0.7761,1791.3,1790.9,0.5045291]
[1743771995635,2.15588679,1791.3,1790.9,6.0881691]
[1743771995830,2.15588679,1791.3,1790.8,5.58409]
[1743771996033,2.29605687,1791.3,1790.8,5.58409]
[1743771996203,2.29605687,1791.3,1790.7,5.5844]
[1743771996401,2.29605687,1791.3,1790.9,5.58373]
[1743771996631,2.29605687,1791.3,1790.9,11.16738]
[1743771996811,2.29605687,1791.3,1790.9,11.1673]
[1743771997235,2.29605687,1791.3,1790.9,5.58365]
[1743771997538,0.91627008,1791.3,1790.7,4.17810747]
[1743771997742,0.91627008,1791.3,1790.9,5.5836]
[1743771997901,6.49896008,1791.3,1790.8,5.58409]
[1743771998109,0.91627008,1791.3,1790.8,5.58394]
[1743771998310,0.91627008,1791.3,1791.0,5.58319]
[1743771998507,0.14017008,1791.3,1791.1,11.16607]
[1743771998739,6.06,1791.4,1791.0,5.58334]
[1743771999041,0.12594586,1791.2,1791.1,5.58316]
[1743771999202,6.06,1791.4,1791.2,5.58259]
[1743771999403,6.06,1791.4,1791.3,5.58253]
[1743771999612,6.34372,1791.6,1791.1,5.5831]
[1743771999838,6.216092,1791.6,1791.2,5.58273]
[1743772000143,6.216092,1791.6,1791.0,0.50633507]
[1743772000144,5.58141,1791.7,1791.3,5.58241]
[1743772000339,5.58174,1791.6,1791.2,5.58262]
[1743772000503,5.58174,1791.6,1791.1,11.16591]
[1743772000504,5.58192,1791.5,1791.1,11.16591]
[1743772000706,5.58174,1791.6,1791.2,5.58282]
[1743772001006,5.58174,1791.6,1791.0,0.50633507]
[1743772001208,11.16279,1791.7,1791.2,11.16525]
[1743772001507,11.16293,1791.7,1791.2,11.16533]
[1743772001719,11.16344,1791.6,1791.1,5.58311]
[1743772001962,5.58193,1791.5,1791.1,6.08944507]
[1743772002114,5.58235,1791.4,1791.1,0.50633507]
[1743772002438,5.58273,1791.3,1790.9,5.58365]
[1743772002641,12.200463,1791.4,1790.9,5.58378]
[1743772002815,6.06,1791.4,1790.8,0.50633507]
[1743772003020,5.58288,1791.2,1790.8,6.09029507]
[1743772003258,5.58288,1791.2,1790.8,5.58396]
[1743772003561,5.58364,1791.0,1790.6,6.09094507]
[1743772003855,5.58318,1791.1,1790.5,5.58501]
[1743772003856,11.97874,1790.9,1790.5,5.58501]
[1743772004012,0.8109,1790.9,1790.6,5.58457]
[1743772004216,0.8109,1791.1,1790.9,5.58366]
[1743772004653,0.8109,1791.1,1790.8,5.58393]
[1743772004953,0.8109,1791.1,1790.7,11.67497507]
[1743772005155,5.58285,1791.2,1790.8,5.58388]
[1743772005359,6.776072,1791.2,1790.8,5.58388]
[1743772005765,6.776072,1791.2,1790.8,6.09021507]
[1743772005932,5.58343,1791.1,1790.8,0.50633507]
[1743772006253,11.16736,1791.0,1790.8,0.50633507]
[1743772006455,0.8189,1790.9,1790.6,0.50633507]
[1743772006614,2.017526,1790.9,1790.6,0.50633507]
[1743772006819,5.5843,1790.8,1790.5,0.50633507]
[1743772007029,5.58451,1790.7,1790.5,0.50633507]
[1743772007362,6.06,1790.8,1790.4,0.50633507]
[1743772007530,5.58503,1790.5,1790.4,0.50633507]
[1743772007722,6.702018,1790.5,1790.4,0.50633507]
[1743772008055,1.116988,1790.5,1790.2,0.50633507]
[1743772008261,5.58507,1790.5,1790.2,0.50633507]
[1743772008421,5.58507,1790.5,1790.3,0.50633507]
[1743772008617,11.17028,1790.5,1790.3,0.50633507]
[1743772008849,0.7524,1790.4,1790.3,0.50633507]
[1743772009046,0.7524,1790.4,1790.1,0.05]
[1743772009047,5.58596,1790.2,1790.1,0.05]
[1743772009257,6.703134,1790.2,1790.1,0.05]
[1743772009624,6.33777,1790.4,1790.1,0.05]
[1743772009963,5.58567,1790.3,1790.1,0.05]
[1743772010555,6.8752,1790.2,1790.1,0.05]
[1743772010755,12.46116,1790.2,1790.1,0.05]
[1743772011422,6.8752,1790.2,1790.1,0.05]
[1743772011616,6.06,1790.2,1790.1,5.63628]
[1743772011821,0.8307,1790.5,1790.1,5.63615]
[1743772012033,6.41577,1790.5,1790.1,0.05]
[1743772012238,5.58544,1790.4,1790.1,0.05]
[1743772012438,5.58584,1790.3,1790.1,0.05]
[1743772012861,5.58596,1790.2,1790.1,0.05]
[1743772013245,5.69241281,1790.2,1790.1,0.05]
[1743772013450,0.87775281,1790.2,1790.1,0.05]
[1743772013653,0.10645281,1790.2,1790.1,5.63628]
[1743772013968,6.35611,1790.6,1790.2,5.58583]
[1743772014268,6.35602,1790.6,1790.2,5.58581]
[1743772014555,6.35602,1790.6,1790.1,5.63613]
[1743772014758,6.35602,1790.6,1790.1,11.22229]
[1743772014938,6.35602,1790.6,1790.2,5.58594]
[1743772015134,2.571344,1790.6,1790.1,0.05]
[1743772015340,11.17052,1790.5,1790.1,0.05]
[1743772015535,5.58522,1790.5,1790.1,0.05]
[1743772015734,0.7713,1790.6,1790.2,5.58582]
[1743772015955,6.35617,1790.6,1790.2,5.58582]
[1743772016267,5.5855,1790.4,1790.1,0.05]
[1743772016428,0.7564,1790.2,1790.1,0.05]
[1743772016767,6.34236,1790.2,1790.1,0.05]
[1743772017264,12.40236,1790.2,1790.1,0.05]
[1743772021144,15.81824975,1790.2,1790.1,0.05]
[1743772021748,15.40236,1790.2,1790.1,0.05]
[1743772021950,15.239029,1790.2,1790.1,0.05]
[1743772023148,15.032629,1790.2,1790.1,0.05]
[1743772023373,15.823829,1790.2,1790.1,0.05]
[1743772023572,5.58806,1789.6,1789.2,0.50904497]
[1743772023749,5.58826,1789.5,1789.2,0.50904497]
[1743772023952,6.146866,1789.6,1789.2,0.50904497]
[1743772024163,11.734906,1789.6,1789.2,5.58898]
[1743772024362,5.58881,1789.3,1789.1,0.05]
[1743772024562,0.7501,1789.5,1789.1,0.05]
[1743772024748,1.4397846,1789.5,1789.1,5.63927]
[1743772024949,5.58873,1789.4,1789.1,0.05]
[1743772025155,1.4397846,1789.5,1789.1,0.05]
[1743772025370,7.0279746,1789.5,1789.1,0.05]
[1743772025575,7.0279746,1789.5,1789.1,5.63936]
[1743772025878,6.8537,1789.7,1789.3,5.58866]
[1743772026073,6.8537,1789.7,1789.4,5.58844]
[1743772026373,5.58836,1789.5,1789.1,0.05]
[1743772026578,5.58789,1789.6,1789.1,5.63937]
[1743772026745,12.44126,1789.7,1789.3,5.58866]
[1743772026951,9.638449,1789.7,1789.3,5.58866]
[1743772027155,15.226109,1789.7,1789.2,5.58904]
[1743772027389,5.58796,1789.6,1789.2,5.58904]
[1743772027574,5.58826,1789.5,1789.1,0.05]
[1743772027779,6.147286,1789.4,1789.1,0.05]
[1743772028163,11.735956,1789.4,1789.1,0.05]
[1743772028365,5.58909,1789.2,1789.1,0.05]
[1743772029093,14.64909,1789.2,1789.1,0.05]
[1743772029395,14.64909,1789.2,1788.5,0.50922172]
[1743772029396,6.40496,1788.6,1788.5,0.50922172]
[1743772029561,13.864456,1788.6,1788.5,0.50922172]
[1743772029889,11.18346,1788.4,1788.1,0.05]
[1743772030107,11.6516,1788.4,1788.1,0.05]
[1743772030259,6.42484,1788.3,1788.1,0.05]
[1743772030454,12.01696,1788.3,1788.1,0.05]
[1743772030705,1.201696,1788.2,1788.1,0.05]
[1743772030890,6.793906,1788.2,1788.1,0.05]
[1743772031063,5.59221,1788.2,1788.1,0.05]
[1743772031962,12.47181,1788.2,1788.1,0.05]
[1743772032265,16.02181,1788.2,1788.1,0.05]
[1743772032472,22.29081,1788.2,1788.1,0.05]
[1743772032687,25.079092,1788.2,1788.1,0.05]
[1743772032960,22.29081,1788.2,1788.1,0.05]
[1743772033559,19.29081,1788.2,1788.1,0.05]
[1743772034102,6.06,1788.2,1788.1,0.05]
[1743772034477,11.65221,1788.2,1788.1,0.05]
[1743772035274,6.06,1788.2,1788.1,0.05]